fUST/lending_fUST_20250116
["ID","MTS","AMOUNT","RATE_DAILY","PERIOD"]
[349147723,1736992250652,-500.0,0.00019315,3]
[349147724,1736992250661,-521.21,0.00019315,3]
[349147725,1736992250670,-500.0,0.00019315,3]
[349147726,1736992250680,-500.0,0.00019315,3]
[349147727,1736992250689,-604.06,0.00019315,3]
[349147728,1736992250698,-500.0,0.00019315,3]
[349147729,1736992250708,-500.0,0.00019315,3]
[349147730,1736992250717,-500.0,0.00019315,3]
[349147731,1736992250726,-1137.94,0.00019315,3]
[349147732,1736992250735,-500.0,0.00019315,3]
[349147733,1736992250745,-500.0,0.00019315,3]
[349147734,1736992250754,-500.0,0.00019315,3]
[349147735,1736992250764,-743.97,0.00019315,3]
[349147736,1736992250773,-1267.88,0.00019315,3]
[349147737,1736992250782,-500.0,0.00019315,3]
[349147738,1736992250792,-500.0,0.00019315,3]
[349147739,1736992250801,-1264.75,0.00019315,3]
[349147740,1736992250898,-500.0,0.00019315,3]
[349147741,1736992250908,-500.0,0.00019315,3]
[349147742,1736992250917,-1112.4,0.00019315,3]
[349147743,1736992250927,-1037.33,0.00019315,3]
[349147744,1736992250937,-1958.19,0.00019315,3]
[349147745,1736992250949,-500.0,0.00019315,3]
[349147746,1736992250958,-1060.97,0.00019315,3]
[349147747,1736992250967,-608.28,0.00019315,3]
[349147748,1736992250979,-500.92642408,0.00019315,3]
[349147749,1736992250988,-528.7,0.00019315,3]
[349147750,1736992250998,-500.0,0.00019315,3]
[349147751,1736992251007,-500.0,0.00019315,3]
[349147752,1736992251016,-509.98928533,0.00019315,3]
[349147753,1736992251027,-500.0,0.00019315,3]
[349147754,1736992251036,-443.27146562,0.00019315,3]
[349147755,1736992251046,-917.15,0.00019315,3]
[349147756,1736992251055,-500.0,0.00019315,3]
[349147757,1736992251065,-500.0,0.00019315,3]
[349147758,1736992251074,-500.0,0.00019315,3]
[349147759,1736992251084,-556.49,0.00019315,3]
[349147760,1736992251093,-512.97,0.00019315,3]
[349147761,1736992251103,-500.0,0.00019315,3]
[349147762,1736992251111,-500.0,0.00019315,3]
[349147763,1736992251121,-500.0,0.00019315,3]
[349147764,1736992251130,-775.94,0.00019315,3]
[349147765,1736992251140,-500.0,0.00019315,3]
[349147766,1736992251149,-500.0,0.00019315,3]
[349147767,1736992251158,-685.21,0.00019315,3]
[349147768,1736992251168,-555.7,0.00019315,3]
[349147769,1736992251177,-500.0,0.00019315,3]
[349147770,1736992251187,-500.0,0.00019315,3]
[349147771,1736992251196,-500.0,0.00019315,3]
[349147772,1736992251205,-769.34,0.00019315,3]
[349147773,1736992251215,-500.0,0.00019315,3]
[349147774,1736992251224,-500.0,0.00019315,3]
[349147775,1736992251233,-500.0,0.00019315,3]
[349147776,1736992251243,-564.71,0.00019315,3]
[349147777,1736992251253,-1114.88,0.00019315,3]
[349147778,1736992251263,-568.63,0.00019315,3]
[349147779,1736992251272,-1357.98,0.00019315,3]
[349147780,1736992251282,-529.78249547,0.00019315,3]
[349147781,1736992251291,-500.0,0.00019315,3]
[349147782,1736992251301,-822.06,0.00019315,3]
[349147783,1736992251310,-500.0,0.00019315,3]
[349147784,1736992251319,-500.0,0.00019315,3]
[349147785,1736992251329,-500.0,0.00019315,3]
[349147786,1736992251338,-500.0,0.00019315,3]
[349147787,1736992251347,-500.0,0.00019315,3]
[349147788,1736992251357,-547.9636128,0.00019315,3]
[349147789,1736992251367,-500.0,0.00019315,3]
[349147790,1736992251377,-500.0,0.00019315,3]
[349147791,1736992251386,-1618.87,0.00019315,3]
[349147792,1736992251395,-500.0,0.00019315,3]
[349147793,1736992251405,-500.0,0.00019315,3]
[349147794,1736992251414,-201.61293074,0.00019315,3]
[349147795,1736992251424,-163.63346245,0.00019315,3]
[349147796,1736992251433,-1289.6,0.00019315,3]
[349147797,1736992251442,-500.0,0.00019315,3]
[349147798,1736992251452,-203.94760821,0.00019315,3]
[349147799,1736992251461,-159.81387298,0.00019315,3]
[349147800,1736992251471,-500.0,0.00019315,3]
[349147801,1736992251480,-500.0,0.00019315,3]
[349147802,1736992251490,-166.11308832,0.00019315,3]
[349147803,1736992251499,-772.03,0.00019315,3]
[349147804,1736992251508,-500.0,0.00019315,3]
[349147805,1736992251518,-500.0,0.00019315,3]
[349147806,1736992251527,-508.01413472,0.00019315,3]
[349147807,1736992251537,-849.77,0.00019315,3]
[349147808,1736992251547,-523.23066365,0.00019315,3]
[349147809,1736992251556,-500.0,0.00019315,3]
[349147810,1736992251565,-500.0,0.00019315,3]
[349147811,1736992251575,-16715.59,0.00019315,3]
[349147812,1736992251584,-2085.58,0.00019315,3]
[349147813,1736992251595,-891.52,0.00019315,3]
[349147814,1736992251605,-500.0,0.00019315,3]
[349147815,1736992251615,-500.0,0.00019315,3]
[349147816,1736992251624,-502.3,0.00019315,3]
[349147817,1736992251633,-513.89367623,0.00019315,3]
[349147818,1736992251643,-2052.17,0.00019315,3]
[349147819,1736992251653,-511.69083439,0.00019315,3]
[349147820,1736992251663,-500.0,0.00019315,3]
[349147821,1736992251674,-4741.25,0.00019315,3]
[349147822,1736992251684,-500.0,0.00019315,3]
[349147823,1736992251694,-500.0,0.00019315,3]
[349147824,1736992251705,-101.53055555,0.00019315,3]
[349147825,1736992252001,-1220.27944445,0.00019315,3]
[349147826,1736992252011,-500.0,0.00019315,3]
[349147827,1736992252021,-980.99,0.00019315,3]
[349147828,1736992252031,-500.0,0.00019315,3]
[349147829,1736992252041,-500.0,0.00019315,3]
[349147830,1736992252050,-500.0,0.00019315,3]
[349147831,1736992252059,-631.63,0.00019315,3]
[349147832,1736992252068,-500.0,0.00019315,3]
[349147833,1736992252078,-500.0,0.00019315,3]
[349147834,1736992252088,-500.0,0.00019315,3]
[349147835,1736992252099,-500.0,0.00019315,3]
[349147836,1736992252108,-500.0,0.00019315,3]
[349147837,1736992252118,-875.29,0.00019315,3]
[349147838,1736992252128,-547.40498375,0.00019315,3]
[349147839,1736992252137,-500.0,0.00019315,3]
[349147840,1736992252147,-599.4,0.00019315,3]
[349147841,1736992252156,-500.0,0.00019315,3]
[349147842,1736992252167,-2117.8,0.00019315,3]
[349147843,1736992252176,-1089.8,0.00019315,3]
[349147844,1736992252186,-267.50317645,0.00019315,3]
[349147845,1736992252195,-500.0,0.00019315,3]
[349147846,1736992252311,-500.0,0.00019315,3]
[349147847,1736992252322,-673.9,0.00019315,3]
[349147848,1736992252332,-500.0,0.00019315,3]
[349147849,1736992252341,-500.0,0.00019315,3]
[349147850,1736992252351,-500.0,0.00019315,3]
[349147851,1736992252361,-500.0,0.00019315,3]
[349147852,1736992252371,-1794.75,0.00019315,3]
[349147853,1736992252380,-595.49,0.00019315,3]
[349147854,1736992252390,-150.31441962,0.00019315,3]
[349147855,1736992252399,-500.0,0.00019315,3]
[349147856,1736992252410,-749.3,0.00019315,3]
[349147857,1736992252419,-500.0,0.00019315,3]
[349147858,1736992252429,-500.0,0.00019315,3]
[349147859,1736992252438,-500.0,0.00019315,3]
[349147860,1736992252447,-640.97,0.00019315,3]
[349147861,1736992252457,-500.0,0.00019315,3]
[349147862,1736992252466,-761.12,0.00019315,3]
[349147863,1736992252478,-501.8,0.00019315,3]
[349147864,1736992252487,-5274.04,0.00019315,3]
[349147865,1736992252496,-512.25453262,0.00019315,3]
[349147866,1736992252506,-500.0,0.00019315,3]
[349147867,1736992252515,-69141.43,0.00019315,3]
[349147868,1736992252524,-500.0,0.00019315,3]
[349147869,1736992252533,-503.22644755,0.00019315,3]
[349147870,1736992252542,-500.0,0.00019315,3]
[349147871,1736992252551,-2664.28,0.00019315,3]
[349147872,1736992252560,-1837.0,0.00019315,3]
[349147873,1736992252570,-648.26,0.00019315,3]
[349147874,1736992252579,-500.0,0.00019315,3]
[349147875,1736992252588,-690.92,0.00019315,3]
[349147876,1736992252597,-500.0,0.00019315,3]
[349147877,1736992252607,-500.0,0.00019315,3]
[349147878,1736992252616,-500.0,0.00019315,3]
[349147879,1736992252625,-500.0,0.00019315,3]
[349147880,1736992252634,-500.0,0.00019315,3]
[349147881,1736992252643,-2008.7,0.00019315,3]
[349147882,1736992252652,-500.0,0.00019315,3]
[349147883,1736992252662,-601.6,0.00019315,3]
[349147884,1736992252671,-500.0,0.00019315,3]
[349147885,1736992252680,-644.21906232,0.00019315,3]
[349147886,1736992252691,-200.0,0.00019315,3]
[349147887,1736992252700,-500.0,0.00019315,3]
[349147888,1736992252709,-500.0,0.00019315,3]
[349147889,1736992252719,-2408.38,0.00019315,3]
[349147890,1736992252728,-500.0,0.00019315,3]
[349147891,1736992252738,-506.52580966,0.00019315,3]
[349147892,1736992252747,-554.44,0.00019315,3]
[349147893,1736992252756,-500.0,0.00019315,3]
[349147894,1736992252765,-500.0,0.00019315,3]
[349147895,1736992252774,-500.0,0.00019315,3]
[349147896,1736992252783,-1207.1,0.00019315,3]
[349147897,1736992252793,-500.0,0.00019315,3]
[349147898,1736992252802,-2072.28,0.00019315,3]
[349147899,1736992252811,-242.67961057,0.00019315,3]
[349147900,1736992252819,-500.0,0.00019315,3]
[349147901,1736992252830,-500.0,0.00019315,3]
[349147902,1736992252839,-1080.78,0.00019315,3]
[349147903,1736992252849,-954.9,0.00019315,3]
[349147904,1736992252858,-503.2065531,0.00019315,3]
[349147905,1736992252867,-500.0,0.00019315,3]
[349147906,1736992252876,-500.0,0.00019315,3]
[349147907,1736992252885,-518.01,0.00019315,3]
[349147908,1736992252894,-2772.17,0.00019315,3]
[349147909,1736992252903,-500.0,0.00019315,3]
[349147910,1736992252913,-500.0,0.00019315,3]
[349147911,1736992252922,-501.76,0.00019315,3]
[349147912,1736992252931,-991.62,0.00019315,3]
[349147913,1736992252945,-7422.79,0.00019315,3]
[349147914,1736992252954,-500.0,0.00019315,3]
[349147915,1736992252963,-510.42074995,0.00019315,3]
[349147916,1736992252973,-500.0,0.00019315,3]
[349147917,1736992252983,-3459.34,0.00019315,3]
[349147918,1736992252992,-677.35,0.00019315,3]
[349147919,1736992253001,-500.0,0.00019315,3]
[349147920,1736992253012,-500.0,0.00019315,3]
[349147921,1736992253021,-500.0,0.00019315,3]
[349147922,1736992253030,-2098.62,0.00019315,2]
[349147923,1736992253039,-3426.95,0.00019315,3]
[349147924,1736992253049,-500.0,0.00019315,3]
[349147925,1736992253059,-500.0,0.00019315,3]
[349147926,1736992253069,-500.0,0.00019315,3]
[349147927,1736992253079,-500.0,0.00019315,3]
[349147928,1736992253088,-504.35204923,0.00019315,3]
[349147929,1736992253098,-22472.45,0.00019315,3]
[349147930,1736992253107,-967.83,0.00019315,3]
[349147931,1736992253118,-4058.33,0.00019315,3]
[349147932,1736992253127,-500.0,0.00019315,3]
[349147933,1736992253137,-500.0,0.00019315,3]
[349147934,1736992253146,-1002.16,0.00019315,3]
[349147935,1736992253156,-595.93,0.00019315,3]
[349147936,1736992253165,-500.0,0.00019315,3]
[349147937,1736992253174,-500.0,0.00019315,3]
[349147938,1736992253184,-500.0,0.00019315,3]
[349147939,1736992253195,-501.64475241,0.00019315,3]
[349147940,1736992253205,-500.0,0.00019315,3]
[349147941,1736992253215,-500.0,0.00019315,3]
[349147942,1736992253225,-500.0,0.00019315,3]
[349147943,1736992253234,-500.0,0.00019315,3]
[349147944,1736992253244,-500.0,0.00019315,3]
[349147945,1736992253264,-1620.28,0.00019315,3]
[349147946,1736992253275,-500.0,0.00019315,3]
[349147947,1736992253285,-500.0,0.00019315,3]
[349147948,1736992253295,-586.87,0.00019315,3]
[349147949,1736992253305,-720.86,0.00019315,3]
[349147950,1736992253315,-873.53,0.00019315,3]
[349147951,1736992253326,-351.1445392,0.00019315,3]
[349147952,1736992253336,-585.73716304,0.00019315,3]
[349147953,1736992253346,-500.0,0.00019315,3]
[349147954,1736992253356,-500.0,0.00019315,3]
[349147955,1736992253367,-896.65,0.00019315,3]
[349147956,1736992253378,-500.0,0.00019315,3]
[349147957,1736992253388,-3289.97,0.00019315,3]
[349147958,1736992253399,-542.62,0.00019315,3]
[349147959,1736992253409,-500.0,0.00019315,3]
[349147960,1736992253420,-504.34859356,0.00019315,3]
[349147961,1736992253430,-500.0,0.00019315,3]
[349147962,1736992253440,-598.43,0.00019315,3]
[349147963,1736992253450,-541.94,0.00019315,3]
[349147964,1736992253460,-5498.47,0.00019315,3]
[349147965,1736992253471,-500.0,0.00019315,3]
[349147966,1736992253481,-500.0,0.00019315,3]
[349147967,1736992253491,-500.0,0.00019315,3]
[349147968,1736992253502,-15205.47,0.00019315,3]
[349147969,1736992253512,-500.0,0.00019315,3]
[349147970,1736992253522,-500.0,0.00019315,3]
[349147971,1736992253533,-504.43159663,0.00019315,3]
[349147972,1736992253543,-633.47,0.00019315,3]
[349147973,1736992253552,-500.0,0.00019315,3]
[349147974,1736992253563,-3354.33,0.00019315,3]
[349147975,1736992253573,-6312.67,0.00019315,3]
[349147976,1736992253583,-500.0,0.00019315,3]
[349147977,1736992253593,-1233.86,0.00019315,3]
[349147978,1736992253603,-502.45918097,0.00019315,3]
[349147979,1736992253613,-500.0,0.00019315,3]
[349147980,1736992253624,-500.0,0.00019315,3]
[349147981,1736992253634,-676.94,0.00019315,3]
[349147982,1736992253644,-636.62,0.00019315,3]
[349147983,1736992253655,-500.0,0.00019315,3]
[349147984,1736992253665,-200.68637598,0.00019315,3]
[349147985,1736992253676,-500.0,0.00019315,3]
[349147986,1736992253686,-522.72897143,0.00019315,3]
[349147987,1736992253696,-500.0,0.00019315,3]
[349147988,1736992253706,-1000.0,0.00019315,7]
[349147989,1736992253716,-500.0,0.00019315,3]
[349147990,1736992253726,-185.80903019,0.00019315,3]
[349147991,1736992253736,-500.0,0.00019315,3]
[349147992,1736992253745,-150.30165167,0.00019315,3]
[349147993,1736992253755,-2697.65,0.00019315,3]
[349147994,1736992253765,-502.10795375,0.00019315,3]
[349147995,1736992253775,-49582.26,0.00019315,3]
[349147996,1736992253785,-670.84,0.00019315,3]
[349147997,1736992253916,-500.0,0.00019315,3]
[349147998,1736992253926,-618.0,0.00019315,3]
[349147999,1736992253937,-2686.17,0.00019315,3]
[349148000,1736992253949,-529.92,0.00019315,3]
[349148001,1736992253959,-500.0,0.00019315,3]
[349148002,1736992253969,-1359.52,0.00019315,3]
[349148003,1736992253980,-500.0,0.00019315,3]
[349148004,1736992253990,-500.0,0.00019315,3]
[349148005,1736992254000,-500.0,0.00019315,3]
[349148006,1736992254009,-500.0,0.00019315,3]
[349148007,1736992254020,-6749.02,0.00019315,3]
[349148008,1736992254030,-611.20232939,0.00019315,3]
[349148009,1736992254041,-500.0,0.00019315,3]
[349148010,1736992254050,-2660.94,0.00019315,3]
[349148011,1736992254059,-500.0,0.00019315,3]
[349148012,1736992254069,-500.0,0.00019315,3]
[349148013,1736992254078,-500.0,0.00019315,3]
[349148014,1736992254088,-942.34,0.00019315,3]
[349148015,1736992254097,-500.0,0.00019315,3]
[349148016,1736992254107,-876.01,0.00019315,3]
[349148017,1736992254117,-500.0,0.00019315,3]
[349148018,1736992254127,-1382.51,0.00019315,3]
[349148019,1736992254137,-1155.46,0.00019315,3]
[349148020,1736992254147,-500.0,0.00019315,3]
[349148021,1736992254157,-500.0,0.00019315,3]
[349148022,1736992254167,-500.0,0.00019315,3]
[349148023,1736992254176,-940.83508647,0.00019315,3]
[349148024,1736992254192,-349.24533782,0.00019315,3]
[349148025,1736992254204,-773.57957571,0.00019315,3]
[349148026,1736992254213,-158.08042429,0.00019315,3]
[349148027,1736992254224,-334.54512468,0.00019315,3]
[349148028,1736992254599,-464.21405376,0.00019175,2]
[349148029,1736992254609,-500.0,0.00019175,2]
[349148030,1736992254618,-500.0,0.00019175,2]
[349148031,1736992254627,-500.0,0.00019175,2]
[349148032,1736992254637,-500.0,0.00019175,2]
[349148033,1736992254647,-500.0,0.00019175,2]
[349148034,1736992254656,-500.0,0.00019175,2]
[349148035,1736992254666,-245.15529416,0.00019175,2]
[349148036,1736992254675,-500.0,0.00019175,2]
[349148037,1736992254685,-500.0,0.00019175,2]
[349148038,1736992254694,-500.0,0.00019175,2]
[349148039,1736992254704,-500.0,0.00019175,2]
[349148040,1736992254714,-500.0,0.00019178,2]
[349148041,1736992254723,-517.41,0.00019178,2]
[349148042,1736992254732,-1803.63,0.00019178,2]
[349148043,1736992254742,-517.41,0.00019178,2]
[349148044,1736992254751,-517.41,0.00019178,2]
[349148045,1736992254760,-517.41,0.00019178,2]
[349148046,1736992254771,-517.41,0.00019178,2]
[349148047,1736992254781,-517.41,0.00019178,2]
[349148048,1736992254790,-517.41,0.00019178,2]
[349148049,1736992254800,-517.41,0.00019178,2]
[349148050,1736992254809,-7.37445103,0.00019315,3]
[349148051,1736992254819,-500.0,0.00019315,3]
[349148052,1736992254828,-1206.25,0.00019315,3]
[349148053,1736992254838,-500.0,0.00019315,3]
[349148054,1736992254848,-893.07,0.00019315,3]
[349148055,1736992254857,-500.0,0.00019315,3]
[349148056,1736992254866,-1803.63,0.00019315,3]
[349148057,1736992254876,-3000.0,0.0001932,2]
[349148058,1736992254885,-3000.0,0.0001933,2]
[349148059,1736992254895,-3000.0,0.0001934,2]
[349148060,1736992254904,-1527.40042727,0.00019342,2]
[349148061,1736992254914,-3000.0,0.0001935,2]
[349148062,1736992254923,-9589.17254673,0.00019352,2]
[349148063,1736992254933,-3000.0,0.0001936,2]
[349148064,1736992254945,-3000.0,0.0001937,2]
[349148065,1736992254955,-3000.0,0.0001938,2]
[349148066,1736992254964,-3000.0,0.0001939,2]
[349148067,1736992254974,-3000.0,0.000194,2]
[349148068,1736992254984,-3000.0,0.0001941,2]
[349148069,1736992254994,-3000.0,0.0001942,2]
[349148070,1736992255004,-3000.0,0.0001943,2]
[349148071,1736992255014,-3000.0,0.0001944,2]
[349148072,1736992255025,-3000.0,0.0001945,2]
[349148073,1736992255034,-500.0,0.00019452,3]
[349148074,1736992255044,-500.0,0.00019452,3]
[349148075,1736992255054,-500.0,0.00019452,3]
[349148076,1736992255064,-500.0,0.00019452,3]
[349148077,1736992255074,-500.0,0.00019452,3]
[349148078,1736992255084,-1268.43,0.00019452,3]
[349148079,1736992255093,-500.0,0.00019452,3]
[349148080,1736992255102,-852.39,0.00019452,3]
[349148081,1736992255112,-500.0,0.00019452,3]
[349148082,1736992255122,-500.0,0.00019452,3]
[349148083,1736992255131,-500.0,0.00019452,3]
[349148084,1736992255140,-500.0,0.00019452,3]
[349148085,1736992255150,-500.0,0.00019452,3]
[349148086,1736992255159,-500.0,0.00019452,3]
[349148087,1736992255169,-500.0,0.00019452,3]
[349148088,1736992255178,-500.0,0.00019452,3]
[349148089,1736992255259,-500.0,0.00019452,3]
[349148090,1736992255279,-500.0,0.00019452,3]
[349148091,1736992255290,-500.0,0.00019452,3]
[349148092,1736992255299,-500.0,0.00019452,3]
[349148093,1736992255309,-500.0,0.00019452,3]
[349148094,1736992255318,-500.0,0.00019452,3]
[349148095,1736992255328,-500.0,0.00019452,3]
[349148096,1736992255337,-500.0,0.00019452,3]
[349148097,1736992255346,-500.0,0.00019452,3]
[349148098,1736992255355,-587.06804957,0.00019452,3]
[349148099,1736992255364,-1013.2,0.00019452,3]
[349148100,1736992255375,-500.0,0.00019452,3]
[349148101,1736992255384,-652.56,0.00019452,3]
[349148102,1736992255393,-500.0,0.00019452,3]
[349148103,1736992255403,-500.0,0.00019452,3]
[349148104,1736992255412,-500.0,0.00019452,3]
[349148105,1736992255422,-500.0,0.00019452,3]
[349148106,1736992255431,-500.0,0.00019452,3]
[349148107,1736992255440,-500.0,0.00019452,3]
[349148108,1736992255449,-500.0,0.00019452,3]
[349148109,1736992255459,-775.75,0.00019452,3]
[349148110,1736992255468,-500.0,0.00019452,3]
[349148111,1736992255478,-500.0,0.00019452,3]
[349148112,1736992255487,-504.09417768,0.00019452,3]
[349148113,1736992255496,-540.29,0.00019452,3]
[349148114,1736992255506,-500.0,0.00019452,3]
[349148115,1736992255516,-500.0,0.00019452,3]
[349148116,1736992255526,-342.92673598,0.00019452,3]
[349148117,1736992255536,-500.0,0.00019452,3]
[349148118,1736992255545,-500.0,0.00019452,3]
[349148119,1736992255554,-500.0,0.00019452,3]
[349148120,1736992255564,-502.41325927,0.00019452,3]
[349148121,1736992255573,-562.79,0.00019452,3]
[349148122,1736992255582,-500.0,0.00019452,3]
[349148123,1736992255591,-500.0,0.00019452,3]
[349148124,1736992255601,-500.0,0.00019452,3]
[349148125,1736992255610,-590.42,0.00019452,3]
[349148126,1736992255621,-500.0,0.00019452,3]
[349148127,1736992255630,-1498.22,0.00019452,3]
[349148128,1736992255640,-690.45,0.00019452,3]
[349148129,1736992255649,-77.03324091,0.00019452,3]
[349148130,1736992255664,-422.96675909,0.00019452,3]
[349148131,1736992255675,-1017.55,0.00019452,3]
[349148132,1736992255684,-500.0,0.00019452,3]
[349148133,1736992255693,-500.0,0.00019452,3]
[349148134,1736992255702,-500.0,0.00019452,3]
[349148135,1736992255711,-440.39208226,0.00019452,3]
[349148136,1736992255721,-500.0,0.00019452,3]
[349148137,1736992255730,-940.45,0.00019452,3]
[349148138,1736992255739,-500.0,0.00019452,3]
[349148139,1736992255748,-696.08,0.00019452,3]
[349148140,1736992255757,-500.0,0.00019452,3]
[349148141,1736992255767,-500.0,0.00019452,3]
[349148142,1736992255776,-500.0,0.00019452,3]
[349148143,1736992255786,-500.0,0.00019452,3]
[349148144,1736992255795,-573.91,0.00019452,3]
[349148145,1736992255805,-500.0,0.00019452,3]
[349148146,1736992255815,-504.99884392,0.00019452,3]
[349148147,1736992255824,-500.0,0.00019452,3]
[349148148,1736992255833,-511.45186647,0.00019452,3]
[349148149,1736992255843,-508.67,0.00019452,3]
[349148150,1736992255852,-396.05432685,0.00019452,3]
[349148151,1736992255861,-500.0,0.00019452,3]
[349148152,1736992255872,-1550.43,0.00019452,3]
[349148153,1736992255881,-1186.47,0.00019452,3]
[349148154,1736992255891,-380.08915704,0.00019452,3]
[349148155,1736992255900,-500.0,0.00019452,3]
[349148156,1736992255910,-500.0,0.00019452,3]
[349148157,1736992255919,-521.21,0.00019452,3]
[349148158,1736992255928,-500.0,0.00019452,3]
[349148159,1736992255940,-500.0,0.00019452,3]
[349148160,1736992255950,-604.06,0.00019452,3]
[349148161,1736992255960,-500.0,0.00019452,3]
[349148162,1736992255969,-500.0,0.00019452,3]
[349148163,1736992255980,-500.0,0.00019452,3]
[349148164,1736992255990,-1137.94,0.00019452,3]
[349148165,1736992255999,-340.98178149,0.00019452,3]
[349148166,1736992256012,-500.0,0.00019452,3]
[349148167,1736992256022,-500.0,0.00019452,3]
[349148168,1736992256032,-743.97,0.00019452,3]
[349148169,1736992256041,-1267.88,0.00019452,3]
[349148170,1736992256051,-500.0,0.00019452,3]
[349148171,1736992256061,-500.0,0.00019452,3]
[349148172,1736992256071,-1264.75,0.00019452,3]
[349148173,1736992256081,-500.0,0.00019452,3]
[349148174,1736992256090,-500.0,0.00019452,3]
[349148175,1736992256099,-1112.4,0.00019452,3]
[349148176,1736992256109,-1037.33,0.00019452,3]
[349148177,1736992256120,-1958.19,0.00019452,3]
[349148178,1736992256130,-500.0,0.00019452,3]
[349148179,1736992256140,-1060.97,0.00019452,3]
[349148180,1736992256150,-608.28,0.00019452,3]
[349148181,1736992256160,-528.7,0.00019452,3]
[349148182,1736992256170,-500.0,0.00019452,3]
[349148183,1736992256180,-540.22360501,0.00019452,3]
[349148184,1736992256189,-500.0,0.00019452,3]
[349148185,1736992256198,-917.15,0.00019452,3]
[349148186,1736992256208,-500.0,0.00019452,3]
[349148187,1736992256217,-500.0,0.00019452,3]
[349148188,1736992256228,-500.0,0.00019452,3]
[349148189,1736992256237,-556.49,0.00019452,3]
[349148190,1736992256247,-512.97,0.00019452,3]
[349148191,1736992256256,-500.0,0.00019452,3]
[349148192,1736992256266,-500.0,0.00019452,3]
[349148193,1736992256275,-500.0,0.00019452,3]
[349148194,1736992256284,-775.94,0.00019452,3]
[349148195,1736992256293,-500.0,0.00019452,3]
[349148196,1736992256303,-505.96498145,0.00019452,3]
[349148197,1736992256312,-685.21,0.00019452,3]
[349148198,1736992256321,-555.7,0.00019452,3]
[349148199,1736992256330,-500.0,0.00019452,3]
[349148200,1736992256340,-500.0,0.00019452,3]
[349148201,1736992256350,-500.0,0.00019452,3]
[349148202,1736992256359,-769.34,0.00019452,3]
[349148203,1736992256371,-500.0,0.00019452,3]
[349148204,1736992256380,-500.0,0.00019452,3]
[349148205,1736992256389,-500.0,0.00019452,3]
[349148206,1736992256399,-564.71,0.00019452,3]
[349148207,1736992256408,-1114.88,0.00019452,3]
[349148208,1736992256417,-568.63,0.00019452,3]
[349148209,1736992256427,-1357.98,0.00019452,3]
[349148210,1736992256436,-500.0,0.00019452,3]
[349148211,1736992256446,-822.06,0.00019452,3]
[349148212,1736992256455,-500.0,0.00019452,3]
[349148213,1736992256464,-500.0,0.00019452,3]
[349148214,1736992256473,-500.0,0.00019452,3]
[349148215,1736992256483,-500.0,0.00019452,3]
[349148216,1736992256492,-500.0,0.00019452,3]
[349148217,1736992256502,-500.0,0.00019452,3]
[349148218,1736992256511,-500.0,0.00019452,3]
[349148219,1736992256520,-1618.87,0.00019452,3]
[349148220,1736992256607,-521.31877269,0.00019452,3]
[349148221,1736992256617,-1289.6,0.00019452,3]
[349148222,1736992256628,-500.0,0.00019452,3]